fUST/lending_fUST_20250313
["ID","MTS","AMOUNT","RATE_DAILY","PERIOD"]
[356023639,1741804239157,-500.0,0.00021917,2]
[356023640,1741804239167,-500.0,0.00021917,2]
[356023641,1741804239176,-500.0,0.00021917,2]
[356023642,1741804239185,-500.0,0.00021917,2]
[356023643,1741804239195,-500.0,0.00021917,2]
[356023644,1741804239204,-500.0,0.00021917,2]
[356023645,1741804239214,-514.86665195,0.00021917,2]
[356023646,1741804239223,-500.0,0.00021917,2]
[356023647,1741804239233,-500.0,0.00021917,2]
[356023648,1741804239243,-500.0,0.00021917,2]
[356023649,1741804239252,-500.0,0.00021917,2]
[356023650,1741804239262,-500.0,0.00021917,2]
[356023651,1741804239272,-500.0,0.00021917,2]
[356023652,1741804239282,-500.0,0.00021917,2]
[356023653,1741804239291,-500.0,0.00021917,2]
[356023654,1741804239301,-789.46,0.00021917,2]
[356023655,1741804239311,-975.12,0.00021917,2]
[356023656,1741804239321,-500.0,0.00021917,2]
[356023657,1741804239331,-500.0,0.00021917,2]
[356023658,1741804239340,-500.0,0.00021917,2]
[356023659,1741804239350,-500.0,0.00021917,2]
[356023660,1741804239361,-974.8,0.00021917,2]
[356023661,1741804239371,-1166.77,0.00021917,2]
[356023662,1741804239380,-500.0,0.00021917,2]
[356023663,1741804239389,-500.0,0.00021917,2]
[356023664,1741804239399,-500.0,0.00021917,2]
[356023665,1741804239408,-1052.25,0.00021917,2]
[356023666,1741804239418,-500.0,0.00021917,2]
[356023667,1741804239427,-500.0,0.00021917,2]
[356023668,1741804239436,-500.0,0.00021917,2]
[356023669,1741804239445,-500.0,0.00021917,2]
[356023670,1741804239456,-500.0,0.00021917,2]
[356023671,1741804239465,-667.25,0.00021917,2]
[356023672,1741804239475,-500.0,0.00021917,2]
[356023673,1741804239484,-1500.08,0.00021917,2]
[356023674,1741804239494,-549.45826415,0.00021917,2]
[356023675,1741804239504,-1045.51,0.00021917,2]
[356023676,1741804239513,-500.0,0.00021917,2]
[356023677,1741804239523,-500.00000001,0.00021917,2]
[356023678,1741804239532,-500.0,0.00021917,2]
[356023679,1741804239542,-500.0,0.00021917,2]
[356023680,1741804239555,-347.15894934,0.00021917,2]
[356023681,1741804239564,-500.0,0.00021917,2]
[356023682,1741804239574,-500.0,0.00021917,2]
[356023683,1741804239583,-500.0,0.00021917,2]
[356023684,1741804239594,-500.0,0.00021917,2]
[356023685,1741804239604,-500.0,0.00021917,2]
[356023686,1741804239614,-502.9971439,0.00021917,2]
[356023688,1741804239624,-500.0,0.00021917,2]
[356023689,1741804239635,-960.45,0.00021917,2]
[356023690,1741804239644,-500.0,0.00021917,2]
[356023691,1741804239654,-270.48531029,0.00021917,2]
[356023693,1741804239664,-500.0,0.00021917,2]
[356023694,1741804239674,-500.0,0.00021917,2]
[356023695,1741804239683,-500.0,0.00021917,2]
[356023696,1741804239693,-500.0,0.00021917,2]
[356023697,1741804239703,-500.0,0.00021917,2]
[356023698,1741804239712,-500.0,0.00021917,2]
[356023699,1741804239722,-500.0,0.00021917,2]
[356023701,1741804239732,-517.89584402,0.00021917,2]
[356023703,1741804239742,-500.0,0.00021917,2]
[356023705,1741804239751,-500.0,0.00021917,2]
[356023707,1741804239761,-500.0,0.00021917,2]
[356023709,1741804239770,-567.61,0.00021917,2]
[356023710,1741804239780,-500.0,0.00021917,2]
[356023711,1741804239789,-500.0,0.00021917,2]
[356023712,1741804239798,-500.0,0.00021917,2]
[356023713,1741804239808,-500.0,0.00021917,2]
[356023714,1741804239817,-500.0,0.00021917,2]
[356023715,1741804239826,-500.0,0.00021917,2]
[356023716,1741804239836,-615.39,0.00021917,2]
[356023717,1741804239846,-500.0,0.00021917,2]
[356023718,1741804239855,-934.23,0.00021917,2]
[356023719,1741804239865,-500.0,0.00021917,2]
[356023720,1741804239874,-500.0,0.00021917,2]
[356023721,1741804239884,-500.0,0.00021917,2]
[356023722,1741804239893,-500.0,0.00021917,2]
[356023723,1741804239902,-500.0,0.00021917,2]
[356023724,1741804239911,-500.0,0.00021917,2]
[356023725,1741804239921,-953.28,0.00021917,2]
[356023726,1741804239930,-500.0,0.00021917,2]
[356023727,1741804239939,-500.0,0.00021917,2]
[356023728,1741804239948,-500.0,0.00021917,2]
[356023729,1741804239958,-500.0,0.00021917,2]
[356023730,1741804239967,-500.0,0.00021917,2]
[356023731,1741804239978,-518.50574985,0.00021917,2]
[356023732,1741804239988,-500.0,0.00021917,2]
[356023733,1741804239997,-500.0,0.00021917,2]
[356023734,1741804240007,-500.0,0.00021917,2]
[356023735,1741804240017,-500.0,0.00021917,5]
[356023736,1741804240027,-500.0,0.00021917,2]
[356023737,1741804240036,-500.0,0.00021917,2]
[356023738,1741804240046,-501.74341373,0.00021917,2]
[356023739,1741804240056,-500.0,0.00021917,2]
[356023740,1741804240065,-500.0,0.00021917,2]
[356023741,1741804240075,-500.0,0.00021917,2]
[356023742,1741804240084,-213.90072615,0.00021917,2]
[356023743,1741804240093,-500.0,0.00021917,2]
[356023744,1741804240103,-500.0,0.00021917,2]
[356023745,1741804240113,-500.0,0.00021917,2]
[356023746,1741804240122,-500.0,0.00021917,2]
[356023747,1741804240131,-500.0,0.00021917,2]
[356023748,1741804240329,-501.96633861,0.00021917,2]
[356023749,1741804240353,-500.0,0.00021917,2]
[356023750,1741804240366,-500.0,0.00021917,2]
[356023751,1741804240376,-500.0,0.00021917,2]
[356023752,1741804240385,-398.05502889,0.00021917,2]
[356023753,1741804240394,-500.0,0.00021917,2]
[356023754,1741804240403,-500.0,0.00021917,2]
[356023755,1741804240413,-500.0,0.00021917,2]
[356023756,1741804240422,-556.49728153,0.00021917,2]
[356023757,1741804240431,-500.0,0.00021917,2]
[356023758,1741804240441,-503.09,0.00021917,2]
[356023759,1741804240451,-500.0,0.00021917,2]
[356023760,1741804240460,-500.0,0.00021917,2]
[356023761,1741804240470,-500.0,0.00021917,2]
[356023762,1741804240480,-500.0,0.00021917,2]
[356023763,1741804240490,-500.0,0.00021917,2]
[356023764,1741804240499,-1823.59,0.00021917,2]
[356023765,1741804240509,-1079.2,0.00021917,2]
[356023766,1741804240518,-508.23769914,0.00021917,2]
[356023767,1741804240527,-500.0,0.00021917,2]
[356023768,1741804240537,-500.0,0.00021917,2]
[356023769,1741804240547,-500.0,0.00021917,2]
[356023770,1741804240559,-500.0,0.00021917,2]
[356023771,1741804240569,-500.0,0.00021917,2]
[356023772,1741804240578,-500.0,0.00021917,2]
[356023773,1741804240590,-519.13,0.00021917,2]
[356023774,1741804240599,-500.0,0.00021917,2]
[356023775,1741804240610,-500.0,0.00021917,2]
[356023776,1741804240619,-1879.28,0.00021917,2]
[356023777,1741804240628,-520.06858878,0.00021917,2]
[356023778,1741804240638,-584.69,0.00021917,2]
[356023779,1741804240648,-531.11093057,0.00021917,2]
[356023780,1741804240658,-500.0,0.00021917,2]
[356023781,1741804240668,-500.0,0.00021917,2]
[356023782,1741804240677,-441.82256377,0.00021917,2]
[356023783,1741804240687,-1161.91,0.00021917,2]
[356023784,1741804240697,-533.65329777,0.00021917,2]
[356023785,1741804240706,-500.0,0.00021917,2]
[356023787,1741804240716,-500.0,0.00021917,2]
[356023789,1741804240726,-500.0,0.00021917,2]
[356023791,1741804240736,-500.0,0.00021917,2]
[356023792,1741804240745,-500.0,0.00021917,2]
[356023794,1741804240755,-638.37521778,0.00021917,2]
[356023795,1741804240764,-500.0,0.00021917,2]
[356023797,1741804240774,-1715.04,0.00021917,2]
[356023798,1741804240783,-500.0,0.00021917,2]
[356023799,1741804240793,-500.0,0.00021917,2]
[356023800,1741804240803,-500.0,0.00021917,2]
[356023801,1741804240813,-1896.14,0.00021917,2]
[356023802,1741804240823,-500.0,0.00021917,2]
[356023803,1741804240832,-1122.11,0.00021917,2]
[356023804,1741804240842,-500.0,0.00021917,2]
[356023805,1741804240851,-500.0,0.00021917,2]
[356023806,1741804240863,-500.0,0.00021917,2]
[356023807,1741804240872,-500.0,0.00021917,2]
[356023808,1741804240881,-500.0,0.00021917,2]
[356023810,1741804240891,-3093.84,0.00021917,2]
[356023811,1741804240901,-500.0,0.00021917,2]
[356023812,1741804240910,-500.0,0.00021917,2]
[356023813,1741804240920,-500.0,0.00021917,2]
[356023814,1741804240929,-500.0,0.00021917,2]
[356023815,1741804240939,-500.0,0.00021917,2]
[356023817,1741804240948,-500.0,0.00021917,2]
[356023818,1741804240958,-555.52,0.00021917,2]
[356023819,1741804240967,-500.0,0.00021917,2]
[356023820,1741804240976,-500.0,0.00021917,2]
[356023821,1741804240986,-500.0,0.00021917,2]
[356023822,1741804240996,-500.0,0.00021917,2]
[356023823,1741804241006,-500.0,0.00021917,2]
[356023824,1741804241015,-1212.52,0.00021917,2]
[356023825,1741804241025,-500.0,0.00021917,2]
[356023826,1741804241034,-1212.52,0.00021917,2]
[356023827,1741804241044,-1212.52,0.00021917,2]
[356023828,1741804241053,-1212.52,0.00021917,2]
[356023829,1741804241063,-1212.52,0.00021917,2]
[356023830,1741804241072,-1212.52,0.00021917,2]
[356023831,1741804241082,-1212.52,0.00021917,2]
[356023832,1741804241091,-1212.52,0.00021917,2]
[356023833,1741804241107,-500.0,0.00021917,2]
[356023834,1741804241117,-1212.52,0.00021917,2]
[356023835,1741804241127,-1212.52,0.00021917,2]
[356023836,1741804241136,-1212.52,0.00021917,2]
[356023837,1741804241146,-1212.52,0.00021917,2]
[356023838,1741804241156,-1212.52,0.00021917,2]
[356023839,1741804241165,-1212.52,0.00021917,2]
[356023840,1741804241176,-1212.52,0.00021917,2]
[356023841,1741804241186,-1212.52,0.00021917,2]
[356023842,1741804241195,-1212.52,0.00021917,2]
[356023843,1741804241205,-563.81168992,0.00021917,2]
[356023844,1741804241215,-1212.52,0.00021917,2]
[356023845,1741804241224,-1212.52,0.00021917,2]
[356023846,1741804241234,-1212.52,0.00021917,2]
[356023847,1741804241243,-1212.52,0.00021917,2]
[356023848,1741804241253,-1212.52,0.00021917,2]
[356023849,1741804241263,-500.0,0.00021917,2]
[356023850,1741804241272,-1212.52,0.00021917,2]
[356023851,1741804241282,-1212.66241266,0.00021917,2]
[356023852,1741804241292,-500.0,0.00021917,2]
[356023853,1741804241301,-505.44945636,0.00021917,2]
[356023854,1741804241311,-500.0,0.00021917,2]
[356023855,1741804241320,-500.0,0.00021917,2]
[356023856,1741804241330,-500.0,0.00021917,2]
[356023857,1741804241339,-500.0,0.00021917,2]
[356023858,1741804241348,-500.0,0.00021917,2]
[356023859,1741804241357,-500.0,0.00021917,2]
[356023860,1741804241367,-831.87,0.00021917,2]
[356023861,1741804241376,-500.0,0.00021917,2]
[356023862,1741804241385,-510.4787682,0.00021917,2]
[356023863,1741804241395,-500.0,0.00021917,2]
[356023864,1741804241404,-500.0,0.00021917,2]
[356023865,1741804241414,-602.64338301,0.00021917,2]
[356023866,1741804241423,-500.0,0.00021917,2]
[356023867,1741804241433,-2356.2,0.00021917,2]
[356023868,1741804241442,-500.0,0.00021917,2]
[356023869,1741804241452,-500.0,0.00021917,2]
[356023870,1741804241461,-500.0,0.00021917,2]
[356023871,1741804241471,-500.0,0.00021917,2]
[356023872,1741804241480,-500.0,0.00021917,2]
[356023873,1741804241490,-500.0,0.00021917,2]
[356023874,1741804241500,-500.0,0.00021917,2]
[356023875,1741804241509,-611.4,0.00021917,2]
[356023876,1741804241522,-500.0,0.00021917,2]
[356023877,1741804241531,-500.0,0.00021917,2]
[356023878,1741804241542,-1067.1,0.00021917,2]
[356023879,1741804241556,-500.0,0.00021917,2]
[356023880,1741804241565,-7271.05,0.00021917,2]
[356023881,1741804241574,-1373.43,0.00021917,2]
[356023882,1741804241585,-1858.22,0.00021917,2]
[356023883,1741804241595,-500.0,0.00021917,2]
[356023884,1741804241604,-500.0,0.00021917,2]
[356023885,1741804241615,-500.0,0.00021917,2]
[356023886,1741804241627,-500.0,0.00021917,2]
[356023887,1741804241637,-500.0,0.00021917,2]
[356023888,1741804241646,-500.0,0.00021917,2]
[356023889,1741804241656,-500.0,0.00021917,2]
[356023890,1741804241665,-500.0,0.00021917,2]
[356023891,1741804241675,-945.95,0.00021917,2]
[356023892,1741804241684,-500.0,0.00021917,2]
[356023893,1741804241695,-632.65,0.00021917,2]
[356023894,1741804241704,-500.0,0.00021917,2]
[356023895,1741804241714,-1083.81,0.00021917,2]
[356023896,1741804241723,-500.0,0.00021917,2]
[356023897,1741804241732,-500.0,0.00021917,2]
[356023898,1741804241742,-500.0,0.00021917,2]
[356023899,1741804241752,-2442.51,0.00021917,2]
[356023900,1741804241761,-500.0,0.00021917,2]
[356023901,1741804241770,-821.2,0.00021917,2]
[356023902,1741804241779,-500.0,0.00021917,2]
[356023903,1741804241788,-305.27899074,0.00021917,2]
[356023904,1741804241798,-500.0,0.00021917,2]
[356023905,1741804241808,-500.0,0.00021917,2]
[356023906,1741804241817,-649.83,0.00021917,2]
[356023907,1741804241827,-1186.49,0.00021917,2]
[356023908,1741804241836,-500.0,0.00021917,2]
[356023909,1741804241846,-940.96,0.00021917,2]
[356023910,1741804241856,-500.0,0.00021917,2]
[356023911,1741804241868,-500.0,0.00021917,2]
[356023912,1741804241877,-605.28,0.00021917,2]
[356023913,1741804241888,-500.0,0.00021917,2]
[356023914,1741804241898,-1030.38,0.00021917,2]
[356023915,1741804241908,-500.0,0.00021917,2]
[356023916,1741804241918,-500.0,0.00021917,2]
[356023917,1741804241928,-969.48,0.00021917,2]
[356023918,1741804241938,-500.0,0.00021917,2]
[356023919,1741804241948,-505.58278429,0.00021917,2]
[356023920,1741804241957,-500.0,0.00021917,2]
[356023921,1741804241967,-774.17,0.00021917,2]
[356023922,1741804241977,-1093.96,0.00021917,2]
[356023923,1741804241987,-1459.08,0.00021917,2]
[356023924,1741804241997,-1182.11,0.00021917,2]
[356023925,1741804242007,-500.0,0.00021917,2]
[356023926,1741804242017,-500.0,0.00021917,2]
[356023927,1741804242027,-1574.94,0.00021917,2]
[356023928,1741804242036,-500.0,0.00021917,2]
[356023929,1741804242046,-500.0,0.00021917,2]
[356023930,1741804242056,-500.0,0.00021917,2]
[356023931,1741804242066,-500.0,0.00021917,2]
[356023932,1741804242075,-500.0,0.00021917,2]
[356023933,1741804242085,-525.48361196,0.00021917,2]
[356023934,1741804242095,-552.92,0.00021917,2]
[356023935,1741804242105,-4645.43,0.00021917,2]
[356023936,1741804242117,-500.0,0.00021917,2]
[356023937,1741804242128,-500.0,0.00021917,2]
[356023938,1741804242137,-500.0,0.00021917,2]
[356023939,1741804242147,-500.0,0.00021917,2]
[356023940,1741804242157,-500.0,0.00021917,2]
[356023941,1741804242167,-500.0,0.00021917,2]
[356023942,1741804242177,-500.0,0.00021917,2]
[356023943,1741804242187,-500.0,0.00021917,2]
[356023944,1741804242197,-500.0,0.00021917,2]
[356023945,1741804242207,-500.0,0.00021917,2]
[356023946,1741804242216,-511.27720669,0.00021917,2]
[356023947,1741804242225,-500.0,0.00021917,2]
[356023948,1741804242235,-1099.73,0.00021917,2]
[356023949,1741804242245,-500.0,0.00021917,2]
[356023950,1741804242254,-42322.16,0.00021917,2]
[356023951,1741804242264,-500.0,0.00021917,2]
[356023952,1741804242274,-500.0,0.00021917,2]
[356023953,1741804242284,-1403.29,0.00021917,2]
[356023954,1741804242293,-500.0,0.00021917,2]
[356023955,1741804242303,-500.0,0.00021917,2]
[356023956,1741804242312,-673.82,0.00021917,2]
[356023957,1741804242322,-1452.65,0.00021917,2]
[356023958,1741804242332,-1408.01,0.00021917,2]
[356023959,1741804242341,-499.9972816,0.00021917,2]
[356023960,1741804242351,-500.0,0.00021917,2]
[356023961,1741804242364,-573.03,0.00021917,2]
[356023963,1741804242374,-963.85,0.00021917,2]
[356023964,1741804242384,-500.0,0.00021917,2]
[356023966,1741804242394,-500.0,0.00021917,2]
[356023967,1741804242403,-500.0,0.00021917,2]
[356023968,1741804242413,-2335.96,0.00021917,2]
[356023969,1741804242423,-16057.6,0.00021917,2]
[356023970,1741804242433,-500.0,0.00021917,2]
[356023971,1741804242443,-500.0,0.00021917,2]
[356023972,1741804242454,-580.0,0.00021917,2]
[356023973,1741804242463,-500.0,0.00021917,2]
[356023975,1741804242473,-500.0,0.00021917,2]
[356023978,1741804242483,-500.0,0.00021917,2]
[356023981,1741804242492,-500.0,0.00021917,2]
[356023983,1741804242501,-500.0,0.00021917,2]
[356023985,1741804242510,-1182.73,0.00021917,2]
[356023987,1741804242519,-500.0,0.00021917,2]
[356023989,1741804242529,-1205.53,0.00021917,2]
[356023992,1741804242539,-500.0,0.00021917,2]
[356023994,1741804242551,-500.0,0.00021917,2]
[356023995,1741804242561,-1336.03,0.00021917,2]
[356023996,1741804242570,-500.0,0.00021917,2]
[356023997,1741804242580,-500.0,0.00021917,2]
[356023999,1741804242591,-1517.5,0.00021917,2]
[356024001,1741804242600,-1485.14,0.00021917,2]
[356024002,1741804242611,-500.0,0.00021917,2]
[356024003,1741804242620,-500.0,0.00021917,2]
[356024004,1741804242630,-500.0,0.00021917,2]
[356024005,1741804242640,-500.0,0.00021917,2]
[356024006,1741804242651,-500.0,0.00021917,2]
[356024008,1741804242661,-3210.25,0.00021917,2]
[356024009,1741804242671,-500.0,0.00021917,2]
[356024010,1741804242681,-999.57,0.00021917,2]
[356024011,1741804242691,-500.0,0.00021917,2]
[356024012,1741804242700,-888.63,0.00021917,2]
[356024013,1741804242709,-500.0,0.00021917,2]
[356024014,1741804242719,-1685.25,0.00021917,2]
[356024015,1741804242730,-831.53,0.00021917,2]
[356024016,1741804242740,-500.0,0.00021917,2]
[356024017,1741804242749,-818.26,0.00021917,2]
[356024018,1741804242759,-500.0,0.00021917,2]
[356024019,1741804242768,-541.7,0.00021917,2]
[356024021,1741804242778,-709.31,0.00021917,2]
[356024024,1741804242835,-2414.55,0.00021917,2]
[356024025,1741804242845,-506.05569522,0.00021917,2]
[356024026,1741804242854,-1000.0,0.00021917,7]
[356024027,1741804242864,-3781.11,0.00021917,2]
[356024028,1741804242874,-500.0,0.00021917,2]
[356024029,1741804242883,-506.45226536,0.00021917,2]
[356024030,1741804242892,-500.0,0.00021917,2]
[356024031,1741804242902,-2194.41,0.00021917,2]
[356024032,1741804242912,-500.0,0.00021917,2]
[356024033,1741804242922,-1148.91,0.00021917,2]
[356024034,1741804242931,-1103.67,0.00021917,2]
[356024035,1741804242940,-568.68,0.00021917,2]
[356024036,1741804242950,-500.0,0.00021917,2]
[356024037,1741804242959,-2784.48,0.00021917,2]
[356024038,1741804242969,-931.13,0.00021917,2]
[356024039,1741804242978,-500.0,0.00021917,2]
[356024040,1741804242988,-1892.94,0.00021917,2]
[356024041,1741804242998,-500.0,0.00021917,2]
[356024042,1741804243007,-500.0,0.00021917,2]
[356024043,1741804243016,-1383.42,0.00021917,2]
[356024044,1741804243026,-500.0,0.00021917,2]
[356024045,1741804243035,-500.0,0.00021917,2]
[356024046,1741804243044,-500.0,0.00021917,2]
[356024047,1741804243054,-500.0,0.00021917,2]
[356024049,1741804243065,-500.85932994,0.00021917,2]
[356024051,1741804243074,-520.50517129,0.00021917,2]
[356024053,1741804243083,-500.0,0.00021917,2]
[356024056,1741804243093,-500.0,0.00021917,2]
[356024057,1741804243102,-1343.7,0.00021917,2]
[356024058,1741804243113,-500.0,0.00021917,2]
[356024059,1741804243122,-946.01,0.00021917,2]
[356024060,1741804243131,-745.32,0.00021917,2]
[356024061,1741804243141,-500.0,0.00021917,2]
[356024062,1741804243150,-500.0,0.00021917,2]
[356024063,1741804243160,-500.0,0.00021917,2]
[356024064,1741804243169,-655.4,0.00021917,2]
[356024065,1741804243178,-500.0,0.00021917,2]
[356024066,1741804243187,-930.87,0.00021917,2]
[356024067,1741804243196,-500.0,0.00021917,2]
[356024068,1741804243205,-500.0,0.00021917,2]
[356024069,1741804243215,-275.21378886,0.00021917,2]
[356024070,1741804243224,-500.0,0.00021917,2]
[356024071,1741804243233,-500.0,0.00021917,2]
[356024072,1741804243243,-686.54,0.00021917,2]
[356024073,1741804243252,-1962.14,0.00021917,2]
[356024074,1741804243261,-2819.17,0.00021917,2]
[356024075,1741804243271,-500.0,0.00021917,2]
[356024076,1741804243280,-464.09170446,0.00021917,2]
[356024077,1741804243289,-1445.89,0.00021917,2]
[356024078,1741804243299,-500.0,0.00021917,2]
[356024079,1741804243308,-214.15718757,0.00021917,2]
[356024080,1741804243317,-500.0,0.00021917,2]
[356024081,1741804243326,-500.0,0.00021917,2]
[356024082,1741804243336,-500.0,0.00021917,2]
[356024083,1741804243345,-500.0,0.00021917,2]
[356024084,1741804243354,-500.0,0.00021917,2]
[356024085,1741804243364,-500.0,0.00021917,2]
[356024086,1741804243373,-996.16,0.00021917,2]
[356024087,1741804243383,-500.0,0.00021917,2]
[356024088,1741804243392,-500.0,0.00021917,2]
[356024089,1741804243401,-500.0,0.00021917,2]
[356024090,1741804243410,-500.0,0.00021917,2]
[356024091,1741804243420,-500.0,0.00021917,2]
[356024092,1741804243429,-772.1,0.00021917,2]
[356024093,1741804243439,-2046.27,0.00021917,2]
[356024094,1741804243448,-500.0,0.00021917,2]
[356024095,1741804243457,-500.0,0.00021917,2]
[356024096,1741804243467,-500.0,0.00021917,2]
[356024097,1741804243477,-440.25150873,0.00021917,2]
[356024098,1741804243486,-500.0,0.00021917,2]
[356024099,1741804243495,-925.78,0.00021917,2]
[356024100,1741804243505,-500.0,0.00021917,2]
[356024101,1741804243514,-500.0,0.00021917,2]
[356024102,1741804243523,-500.0,0.00021917,2]
[356024103,1741804243533,-532.59,0.00021917,2]
[356024104,1741804243543,-3332.35,0.00021917,2]
[356024105,1741804243555,-500.0,0.00021973,2]
[356024106,1741804243565,-503.43618055,0.00021973,2]
[356024107,1741804243574,-500.0,0.00021973,2]
[356024108,1741804243585,-500.0,0.00021973,2]
[356024109,1741804243594,-500.0,0.00021973,2]
[356024110,1741804243604,-500.0,0.00021973,2]
[356024111,1741804243615,-500.0,0.00021973,2]
[356024112,1741804243626,-391.00419143,0.00021973,2]
[356024113,1741804243635,-274.31055979,0.00021973,2]
[356024114,1741804243645,-500.0,0.00021973,2]
[356024115,1741804243654,-500.0,0.00021973,2]
[356024116,1741804243664,-500.0,0.00021973,2]
[356024117,1741804243673,-500.0,0.00021973,2]
[356024118,1741804243683,-500.0,0.00021973,2]
[356024119,1741804243692,-500.0,0.00021973,2]
[356024120,1741804243701,-500.0,0.00021973,2]
[356024121,1741804243711,-500.0,0.00021973,2]
[356024122,1741804243720,-500.0,0.00021973,2]
[356024123,1741804243730,-252.35017178,0.00021973,2]
[356024124,1741804243739,-500.0,0.00021973,2]
[356024125,1741804243748,-503.84465367,0.00021973,2]
[356024126,1741804243758,-500.0,0.00021973,2]
[356024127,1741804243767,-500.0,0.00021973,2]
[356024128,1741804243776,-500.0,0.00021973,2]
[356024129,1741804243787,-500.0,0.00021973,2]
[356024130,1741804243797,-159.59110693,0.00021973,2]
[356024131,1741804243807,-500.0,0.00021973,2]
[356024132,1741804243816,-287.55736333,0.00021973,2]
[356024133,1741804243826,-500.0,0.00021973,2]
[356024134,1741804243835,-500.0,0.00021973,2]
[356024135,1741804243845,-500.0,0.00021973,2]
[356024136,1741804243854,-500.0,0.00021973,2]
[356024137,1741804243864,-500.0,0.00021973,2]
[356024138,1741804243874,-397.01574633,0.00021973,2]
[356024139,1741804243883,-500.0,0.00021973,2]
[356024140,1741804243893,-503.50763077,0.00021973,2]
[356024141,1741804243902,-500.0,0.00021973,2]
[356024142,1741804243912,-500.0,0.00021973,2]
[356024143,1741804243922,-1000.0,0.00022,22]
[356024144,1741804243931,-524.0,0.00022,90]
[356024145,1741804243940,-346.71507097,0.00022,2]
[356024146,1741804243950,-25629.05724229,0.00022,2]
[356024147,1741804243959,-1000.0,0.00022,2]
[356024148,1741804243968,-166.0,0.00022,2]
[356024149,1741804243978,-179.918383,0.00022,90]
[356024150,1741804243988,-174.09255559,0.00022091,2]
[356024151,1741804243997,-289.6955896,0.000221,2]
[356024152,1741804244006,-1645.06936675,0.000221,2]
[356024153,1741804244017,-500.0,0.00022173,2]
[356024154,1741804244026,-500.0,0.00022173,2]
[356024155,1741804244036,-500.0,0.00022173,2]
[356024156,1741804244046,-500.0,0.00022173,2]
[356024157,1741804244056,-500.0,0.00022173,2]
[356024158,1741804244065,-500.0,0.00022173,2]
[356024159,1741804244075,-225.92834623,0.00022173,2]
[356024160,1741804244084,-500.0,0.00022173,2]
[356024161,1741804244094,-500.0,0.00022173,2]
[356024162,1741804244103,-500.0,0.00022173,2]
[356024163,1741804244114,-500.0,0.00022173,2]
[356024164,1741804244123,-500.0,0.00022173,2]
[356024165,1741804244133,-500.0,0.00022173,2]
[356024166,1741804244142,-336.53864466,0.00022173,2]
[356024167,1741804244152,-500.0,0.00022173,2]
[356024168,1741804244162,-500.0,0.00022173,2]
[356024169,1741804244171,-162.76484165,0.00022173,2]
[356024170,1741804244180,-361.51206647,0.00022173,2]
[356024171,1741804244190,-500.0,0.00022173,2]
[356024172,1741804244200,-500.0,0.00022173,2]
[356024173,1741804244209,-500.0,0.00022173,2]
[356024174,1741804244219,-500.0,0.00022173,2]
[356024175,1741804244228,-500.0,0.00022173,2]
[356024176,1741804244237,-500.0,0.00022173,2]
[356024177,1741804244247,-585.86801385,0.00022173,2]